Cogmind - Beta 14 @@@ ROGUE MODE // 2024.10.30 @ 12:24:25 Player: VraethrDalkr Result: Destroyed by P-80 Master with Gamma Rifle Performance ------------- Evolutions (7) 3500 Regions Visited (15) 3000 Robots Destroyed (129) 645 Value Destroyed (5815) 5815 Prototype IDs (15) 300 Alien Tech Used (0) 0 Bonus (865) 865 TOTAL SCORE: 14125 Bonus ------- High Alert Combat Kills 492 Follower Combat Kills 88 Aligned with FarCom 300 Friendly Fire -15 Cogmind --------- Core Integrity 0/1300 Matter 273/300 Energy 74/100 System Corruption 36% Temperature Cool (0) Movement Core (50) Location -3/Research Parts ------- > --- POWER (3) -------- (None) > --- PROPULSION (6) --- (None) > --- UTILITY (8) ------ Advanced Heat Sink > --- WEAPON (4) ------- (None) > --- INVENTORY (5) ---- Myomer Leg Biometal Leg Advanced Power Amplifier Large Storage Unit Peak State ------------ > --- POWER ------------ Neutrino Core Enhanced Fission Core Light Antimatter Reactor > --- PROPULSION ------- Flexi-carbon Leg Flexi-carbon Leg Flexi-carbon Leg Flexi-carbon Leg Enhanced Armored Leg Myomer Leg > --- UTILITY ---------- Advanced Cryofiber Web Advanced Heat Sink Advanced Heat Sink Large Storage Unit Gravity Neutralizer Precision Matter Filter Hardened Medium Armor Plating Improved System Shield > --- WEAPON ----------- Improved Matter Neutralizer Hypervelocity Gauss Cannon Heavy Gauss Cannon Advanced Remote Datajack > --- INVENTORY -------- Improved Deuterium Engine Light Antimatter Reactor Light Antimatter Reactor Flexi-carbon Leg Flexi-carbon Leg Flexi-carbon Leg Myomer Leg Advanced Power Amplifier Advanced Heat Sink Advanced Heat Sink Large Storage Unit Advanced Targeting Computer Hardened Medium Armor Plating Advanced Plasma Cannon Heavy Phase Cannon [Rating: 130] Favorites ----------- Power Improved Ion Engine Engine Improved Ion Engine Power Core Neutrino Core Reactor Light Antimatter Reactor Propulsion Light Treads Treads Light Treads Leg Flexi-carbon Leg Flight Unit Cooled Field Propulsion Drive Utility Large Storage Unit Device Structural Scanner Storage Large Storage Unit Processor Improved Terrain Scan Processor Hackware Improved System Shield Protection Improved Light Armor Plating Weapon Plasma Rifle Energy Gun Plasma Rifle Energy Cannon Heavy Ion Cannon Ballistic Gun Heavy Assault Rifle Ballistic Cannon Heavy Gauss Cannon Special Weapon Advanced Remote Datajack Build | -11 -10 -9 -9 -9 -8 -8 -7 -6 -6 -6 -6 -6 -5 -4 -3 ------- Run | Yrd Mat Mat Min Exi Min Mat Fac Fac Was Fac Low Low Fac Fac Res Slots Evolved 14 | . . 2 . . . 2 2 2 . . . . 2 2 2 Power 2 | . . . . . . 1 . . . . . . . 1 . Propulsion 4 | . . 1 . . . . 1 . . . . . . 1 1 Utility 6 | . . . . . . 1 1 1 . . . . 2 . 1 Weapon 2 | . . 1 . . . . . 1 . . . . . . . Parts Attached 205 | 7 5 12 . 8 1 4 37 17 2 20 . 7 27 3 55 Power 31 | 2 . 2 . . . 1 9 1 . 1 . 2 3 . 10 Engine 13 | 2 . 2 . . . . 3 . . 1 . 2 1 . 2 Core 11 | . . . . . . 1 6 1 . . . . 2 . 1 Reactor 7 | . . . . . . . . . . . . . . . 7 Propulsion 54 | 2 . 4 . . 1 1 13 6 1 5 . . 3 1 17 Treads 33 | 2 . 4 . . 1 1 13 6 1 3 . . 1 1 . Leg 20 | . . . . . . . . . . 2 . . 2 . 16 Wheel . | . . . . . . . . . . . . . . . . Hover . | . . . . . . . . . . . . . . . . Flight 1 | . . . . . . . . . . . . . . . 1 Utility 71 | 1 4 1 . 4 . 1 7 6 1 10 . 2 15 1 18 Device 45 | . 2 1 . 2 . . 3 5 1 3 . 2 11 1 14 Storage 5 | 1 2 . . 1 . . . . . 1 . . . . . Processor 5 | . . . . 1 . . . . . 2 . . 1 . 1 Hackware 1 | . . . . . . . . . . . . . . . 1 Protection 15 | . . . . . . 1 4 1 . 4 . . 3 . 2 Artifact . | . . . . . . . . . . . . . . . . Weapon 49 | 2 1 5 . 4 . 1 8 4 . 4 . 3 6 1 10 Energy Gun 17 | 1 . 2 . 3 . . . 1 . 2 . . 3 1 4 Energy Cannon 7 | . . . . . . . 3 1 . . . . . . 3 Ballistic Gun 16 | 1 1 3 . 1 . 1 4 . . 1 . 2 2 . . Ballistic Cannon 8 | . . . . . . . 1 2 . 1 . 1 1 . 2 Launcher . | . . . . . . . . . . . . . . . . Special Weapon 1 | . . . . . . . . . . . . . . . 1 Impact Weapon . | . . . . . . . . . . . . . . . . Slashing Weapon . | . . . . . . . . . . . . . . . . Piercing Weapon . | . . . . . . . . . . . . . . . . Special Melee Weapon . | . . . . . . . . . . . . . . . . Unidentified Prototypes 13 | . . . . 3 . . 1 . 1 2 . . 1 . 5 Parts Lost 56 | . . 2 . . . . 6 . 8 . . 3 6 2 29 Power 12 | . . . . . . . 1 . 1 . . 1 2 . 7 Propulsion 15 | . . . . . . . 2 . 3 . . . 1 . 9 Utility 16 | . . . . . . . 2 . 2 . . 2 2 2 6 Weapon 13 | . . 2 . . . . 1 . 2 . . . 1 . 7 Highest Loss Streak 22 | . . 1 . . . . 4 . 8 . . 3 4 2 22 To Critical Strikes . | . . . . . . . . . . . . . . . . Average Slot Usage (%) 91 | . 93 94 100 98 88 90 94 98 70 58 93 94 97 91 89 Engine 7 | . 14 11 11 11 11 9 9 . . 5 6 8 5 5 1 Core 3 | . . . . . . 9 5 13 9 . . . 4 5 5 Treads 21 | . 28 28 33 33 33 27 29 25 18 9 20 20 8 7 2 Leg 4 | . . . . . . . . . . 4 6 6 12 15 22 Device 14 | . 8 11 11 10 11 9 15 19 14 7 13 15 23 21 20 Storage 7 | . 14 11 11 11 11 9 7 6 4 1 6 6 5 5 3 Processor 1 | . . . . . . . . . . 5 . . 4 5 2 Protection 4 | . . . . . . 9 7 6 3 8 13 9 4 5 3 Energy Gun 9 | . 14 15 11 11 11 9 4 6 4 12 13 13 10 10 6 Ballistic Gun 10 | . 14 16 22 20 11 9 9 6 4 . 6 5 6 10 4 Ballistic Cannon 1 | . . . . . . . . 5 3 . 6 6 3 . 3 Peak Build Rating 130 | 6 8 14 15 28 28 33 46 47 47 59 61 61 86 92 130 Average Rating 46 | 5 6 10 14 16 28 32 41 44 32 35 60 59 77 88 105 On Entrance 34 | . 6 8 14 15 28 28 33 28 47 1 59 61 61 86 80 Naked Turns 106 | . . . . . . . . . 39 9 . . . . 58 Heaviest Build 118 | 14 30 37 37 39 39 47 65 73 73 61 61 68 84 79 118 Greatest Support 137 | 40 40 60 60 60 60 60 88 80 80 70 70 70 70 56 137 Greatest Overweight (x) 2 | . . . . . . . 1 1 1 1 . . 2 1 1 Average Overweight (x) . | . . . . . . . . . . . . . 1 1 . Largest Inventory Capacity 15 | 8 15 15 15 15 15 15 15 15 15 15 15 15 15 15 15 Average Capacity 13 | 7 10 15 15 15 15 15 15 15 12 6 15 15 15 15 14 Most Carried 15 | 1 12 15 15 15 15 15 15 15 15 8 13 13 15 15 15 Average Carried 13 | . 5 13 15 15 15 14 14 13 12 4 11 11 14 14 13 Final Capacity 15 | 8 15 15 15 15 15 15 15 15 5 15 15 15 15 15 5 Final Carried 15 | 1 12 15 15 15 15 15 14 15 5 8 13 10 15 15 4 Class Distribution -------------------- 53% | Scavenger-Skirmisher 25% | Scavenger-Tank 10% | Mutant 6% | Tank Dominant Class ---------------- Mutant | -10/Materials Scavenger-Skirmisher | -9/Materials Scavenger-Skirmisher | -9/Mines Scavenger-Skirmisher | -9/Exiles Scavenger-Skirmisher | -8/Mines Scavenger-Skirmisher | -8/Materials Scavenger-Skirmisher | -7/Factory Scavenger-Tank | -6/Factory Scavenger-Tank | -6/Waste Mutant | -6/Factory Scavenger-Tank | -6/Lower Caves Scavenger-Tank | -6/Lower Caves Scavenger-Tank | -5/Factory Scavenger-Tank | -4/Factory Scavenger-Skirmisher | -3/Research Resources | -11 -10 -9 -9 -9 -8 -8 -7 -6 -6 -6 -6 -6 -5 -4 -3 ----------- Run | Yrd Mat Mat Min Exi Min Mat Fac Fac Was Fac Low Low Fac Fac Res Matter Collected 3828 | 207 138 190 30 . 86 50 901 173 . 115 116 178 790 10 844 Remotely 20 | . 20 . . . . . . . . . . . . . . Salvage Created 6052 | 30 118 564 103 . 313 99 1725 310 . 115 . 109 888 69 1609 Parts 272 | 1 5 30 6 . 14 7 93 13 . 2 . . 35 2 64 Haulers Intercepted 3 | . . 2 . . . . 1 . . . . . . . . Recyclers Shooed 2 | . . . . . . . 1 . . . . . . . 1 Parts Field Recycled . | . . . . . . . . . . . . . . . . Retrieved Matter . | . . . . . . . . . . . . . . . . Parts Self-Destructed 1 | . . . . . . . . . . . . 1 . . . Prevented . | . . . . . . . . . . . . . . . . Kills | -11 -10 -9 -9 -9 -8 -8 -7 -6 -6 -6 -6 -6 -5 -4 -3 ------- Run | Yrd Mat Mat Min Exi Min Mat Fac Fac Was Fac Low Low Fac Fac Res Combat Hostiles Destroyed 98 | . 1 9 2 . 6 2 33 3 . 2 . 2 15 1 22 Guns 65 | . 1 9 2 . 6 2 20 2 . 1 . 2 9 1 10 Cannons 26 | . . . . . . . 9 1 . . . . 4 . 12 AOE 5 | . . . . . . . 4 . . . . . 1 . . Classes Destroyed 16 | 1 2 3 1 . 1 . 8 . . . . . . . . Worker 8 | . . . . . . . 5 . . . . . 1 . 2 Builder 6 | . . 1 . . . . . 1 . . . . 2 . 2 Tunneler 2 | 1 . . . . . . 1 . . . . . . . . Hauler 3 | . . 2 . . . . 1 . . . . . . . . Recycler 5 | . 1 . 1 . . . 1 1 . . . . . . 1 Mechanic 1 | . . . . . . . 1 . . . . . . . . Watcher 6 | . . . . . . . 4 . . . . . . . 2 Swarmer 5 | . . . 2 . . . 3 . . . . . . . . Grunt 52 | . 1 7 . . 5 1 16 1 . . . 2 4 . 15 Brawler 6 | . . . . . 1 . 2 2 . . . . 1 . . Duelist 2 | . . . . . . . 1 . . . . . 1 . . Protector 1 | . . . . . . . 1 . . . . . . . . Sentry 11 | . . 2 . . . 1 3 . . 1 . . 2 1 1 Specialist 4 | . . . . . . . 4 . . . . . . . . Hunter 3 | . . . . . . . 1 . . . . . 1 . 1 Programmer 14 | . . . . . . . 2 . . 1 . . 6 . 5 Best Kill Streak 8 | 1 2 6 1 . 3 1 8 5 . 1 . 2 6 1 8 Combat Bots Only 5 | . 1 4 1 . 3 1 5 3 . 1 . 2 5 1 5 Max Kills in Single Turn 4 | 1 1 2 1 . 1 1 4 2 . 1 . 2 3 1 1 Gunslinging 1 | . . . . . . . . . . . . 1 1 . . Exploded 2 | . . . . . . . 2 . . . . . 1 . . Melee . | . . . . . . . . . . . . . . . . Uniques/NPCs Destroyed . | . . . . . . . . . . . . . . . . Combat | -11 -10 -9 -9 -9 -8 -8 -7 -6 -6 -6 -6 -6 -5 -4 -3 -------- Run | Yrd Mat Mat Min Exi Min Mat Fac Fac Was Fac Low Low Fac Fac Res Hostile Shots Fired 853 | . 6 42 6 . 3 . 225 7 7 30 . 19 110 9 389 Missed 242 | . . 12 1 . 2 . 63 2 . 12 . 4 30 4 112 Damage Taken 12135 | . 60 343 116 . 15 . 2577 147 265 172 . 391 1774 235 6040 Core 1860 | . . 38 . . 15 . 265 20 62 17 . 18 44 63 1318 Absorbed by Shields 366 | . . . . . . . . 39 32 . . . 132 53 110 Redirected to Shielding 173 | . . . . . . . . . . 77 . 96 . . . Ignored by Resistances 54 | . . . . . . . . . . . . . 54 . . Regen/Repaired (Parts) 491 | . . . . . . . 342 149 . . . . . . . Core Remaining (%) 90 | 100 100 . . . 86 100 62 . . . . 86 95 94 . Volleys Fired 226 | 2 7 22 5 . 2 . 68 6 . 7 . 6 35 3 63 Largest 4 | 2 2 3 3 . 1 . 3 4 . 2 . 4 4 4 4 Hottest 333 | 60 60 102 102 . 23 . 121 186 . 155 . 246 254 223 333 Shots Fired 781 | 4 14 62 15 . 16 3 220 24 . 15 1 17 133 12 245 Gun 587 | 4 14 62 15 . 16 3 167 12 . 15 1 14 107 12 145 Cannon 194 | . . . . . . . 53 12 . . . 3 26 . 100 Launcher . | . . . . . . . . . . . . . . . . Special . | . . . . . . . . . . . . . . . . Kinetic 379 | 2 7 26 10 . 2 . 121 12 . . 1 5 69 6 118 Thermal 375 | . . 21 5 . 14 3 99 12 . 15 . 12 64 6 124 Explosive . | . . . . . . . . . . . . . . . . Electromagnetic 27 | 2 7 15 . . . . . . . . . . . . 3 Robot Hit Streak 27 | 3 6 15 4 . 11 5 27 12 . 10 . 11 8 4 11 Robot Miss Streak 8 | . 1 2 2 . 1 . 6 2 . 2 . 2 4 1 8 Penetration Max 1 | . . . . . . . 1 . . . . . 1 . 1 Secondary Targets 10 | . . 2 1 . . . . . . . . 1 1 . 5 Max Gunslinging Chain 1 | . . 1 1 . . . . . . . . 1 1 . 1 Autonomous 67 | . . . . . 14 3 50 . . . . . . . . Shots Hit Robots 506 | 3 11 42 6 . 14 3 163 17 . 12 . 12 78 7 138 Core Hits 300 | 1 4 21 3 . 8 2 106 12 . 3 . 5 57 4 74 Critical Kills 7 | . . . . . . . . . . . . . 2 . 5 Critical Parts Destroyed 10 | . . . . . . . 1 . . . . . 4 1 4 Critical Strikes 31 | . . 3 . . . . 1 . . . . . 10 1 16 Burn 10 | . . 1 . . . . . . . . . . 4 . 5 Destroy 17 | . . . . . . . 1 . . . . . 6 1 9 Blast 2 | . . . . . . . . . . . . . . . 2 Corrupt 2 | . . 2 . . . . . . . . . . . . . Melee Attacks . | . . . . . . . . . . . . . . . . Impact . | . . . . . . . . . . . . . . . . Slashing . | . . . . . . . . . . . . . . . . Piercing . | . . . . . . . . . . . . . . . . Sneak Attacks . | . . . . . . . . . . . . . . . . Combat Hostiles . | . . . . . . . . . . . . . . . . Follow-up Attacks . | . . . . . . . . . . . . . . . . Damage Inflicted 13877 | 34 150 607 108 . 389 92 5157 432 . 316 . 287 2068 152 4085 Guns 8752 | 34 148 593 108 . 389 92 2967 239 . 316 . 247 1455 152 2012 Cannons 3813 | . . . . . . . 1031 193 . . . 40 489 . 2060 Explosions 1271 | . . . . . . . 1147 . . . . . 124 . . Melee . | . . . . . . . . . . . . . . . . Ramming 41 | . 2 14 . . . . 12 . . . . . . . 13 Kinetic 5537 | 10 56 260 50 . 17 . 1880 152 . . . 81 1054 90 1887 Thermal 7649 | . . 172 58 . 372 92 3028 280 . 316 . 206 890 62 2173 Explosive 237 | . . . . . . . 237 . . . . . . . . Electromagnetic 413 | 24 92 161 . . . . . . . . . . 124 . 12 Impact . | . . . . . . . . . . . . . . . . Slashing . | . . . . . . . . . . . . . . . . Piercing . | . . . . . . . . . . . . . . . . Highest Corruption 36 | . . . . . . . 2 . 10 11 11 11 12 . 36 Average Corruption 7 | . . . . . . . 1 . 6 10 11 11 8 . 17 Corruption Purged 5 | . . . . . . . . . . . . . 5 . . Corruption Blocked . | . . . . . . . . . . . . . . . . Effects 169 | . . . . . . . 17 . 4 42 25 4 66 . 11 Message Errors 39 | . . . . . . . 3 . 3 10 7 1 12 . 3 Matter Fused 34 | . . . . . . . 5 . . 7 4 . 17 . 1 Heat Flow Errors 23 | . . . . . . . 2 . 1 3 5 . 10 . 2 Energy Discharges 26 | . . . . . . . 2 . . 12 4 1 7 . . Parts Rejected 4 | . . . . . . . . . . 1 . 1 2 . . Data Loss (minor) 21 | . . . . . . . 1 . . 4 3 . 13 . . Data Loss (major) 6 | . . . . . . . . . . 4 1 . 1 . . Misfires 7 | . . . . . . . 3 . . 1 1 . 2 . . Alerts 2 | . . . . . . . 1 . . . . . . . 1 Misdirections 4 | . . . . . . . . . . . . . . . 4 Weapon Failures 3 | . . . . . . . . . . . . 1 2 . . Overload Shots . | . . . . . . . . . . . . . . . . Overflow Damage 140 | . . . . . . . 81 . . . . . 7 . 52 Projectiles 60 | . . . . . . . 8 . . . . . . . 52 Explosions 80 | . . . . . . . 73 . . . . . 7 . . Melee . | . . . . . . . . . . . . . . . . Knockbacks 23 | . . . . . . . . . . . . 1 11 . 11 Impact . | . . . . . . . . . . . . . . . . Kinetic 21 | . . . . . . . . . . . . 1 10 . 10 Secondary 2 | . . . . . . . . . . . . . 1 . 1 Self-Inflicted Damage 249 | . . . . . . . 70 . . . . . 179 . . Shots 7 | . . . . . . . 1 . . . . . 6 . . Rammed 4 | . 1 2 . . . . 1 . . . . . . . . Targets Rammed 7 | . 1 2 . . . . 3 . . . . . . . 1 Kicked 1 | . . . . . . . . . . . . . . . 1 Crushed 2 | . . . . . . . 2 . . . . . . . . Highest Temperature 620 | . 30 187 87 . . . 157 412 251 135 193 366 620 . 199 Average Temperature 118 | . 18 73 32 . . . 26 214 140 57 86 170 151 . 120 Received Heat Transfer 1802 | . 36 168 57 . 9 . 633 . . 24 . 117 183 . 575 Effects 15 | . . . . . . . . 3 . . . 2 10 . . Shutdowns 3 | . . . . . . . . . . . . 1 2 . . Energy Bleed 4 | . . . . . . . . 2 . . . . 2 . . Interference 4 | . . . . . . . . . . . . . 4 . . Short Circuit 4 | . . . . . . . . 1 . . . 1 2 . . Siege Activations . | . . . . . . . . . . . . . . . . Robots Corrupted . | . . . . . . . . . . . . . . . . Combat Hostiles . | . . . . . . . . . . . . . . . . Parts Fried 1 | . . 1 . . . . . . . . . . . . . Impact Corruptions 1 | . . . . . . . . . . . . . . . 1 Robots Melted 2 | . . . . . . . . . . 1 . . 1 . . Combat Hostiles 2 | . . . . . . . . . . 1 . . 1 . . Parts Melted 34 | . . . . . 1 . 6 . . 3 . 1 13 . 10 Heat Transferred 12585 | . . 473 148 . 481 111 3352 510 . 522 . 398 2285 150 4155 Parts Sabotaged . | . . . . . . . . . . . . . . . . Parts Stolen . | . . . . . . . . . . . . . . . . Parts Stripped . | . . . . . . . . . . . . . . . . Power Chain Reactions 3 | . . . . . . . . . . . . . 3 . . Alert | -11 -10 -9 -9 -9 -8 -8 -7 -6 -6 -6 -6 -6 -5 -4 -3 ------- Run | Yrd Mat Mat Min Exi Min Mat Fac Fac Was Fac Low Low Fac Fac Res Peak Influence 946 | 5 111 300 162 . 177 126 946 521 127 62 . . 201 114 331 Initial 443 | . 3 46 62 . . 68 47 443 112 43 . . 12 60 48 Average 176 | 2 53 164 60 . 16 89 419 492 94 25 . . 88 89 141 Maximum Alert Level 3 | . . 1 . . . . 3 2 . . . . 1 . 1 Low Security (%) 71 | 100 100 65 100 . 100 100 20 . 100 100 . . 90 100 84 Level 1 14 | . . 34 . . . . 38 5 . . . . 9 . 15 Level 2 9 | . . . . . . . 25 94 . . . . . . . Level 3 3 | . . . . . . . 16 . . . . . . . . Level 4 . | . . . . . . . . . . . . . . . . Level 5 . | . . . . . . . . . . . . . . . . High Security . | . . . . . . . . . . . . . . . . Max Security . | . . . . . . . . . . . . . . . . Squads Dispatched 30 | . . 2 . . . . 14 1 . 1 . . 6 1 5 Investigation 2 | . . 1 . . . . 1 . . . . . . . . Extermination 8 | . . . . . . . 2 . . 1 . . 3 . 2 Reinforcement 14 | . . 1 . . . . 7 . . . . . 3 1 2 Assault 4 | . . . . . . . 3 1 . . . . . . . Garrison 2 | . . . . . . . 1 . . . . . . . 1 Intercept . | . . . . . . . . . . . . . . . . Searches Triggered . | . . . . . . . . . . . . . . . . Construction Impeded 1 | . . . . . . . 1 . . . . . . . . Haulers Reinforced 2 | . . . . . . . 2 . . . . . . . . Active Scanning Responses . | . . . . . . . . . . . . . . . . Cargo Convoy Interrupts . | . . . . . . . . . . . . . . . . Stealth | -11 -10 -9 -9 -9 -8 -8 -7 -6 -6 -6 -6 -6 -5 -4 -3 --------- Run | Yrd Mat Mat Min Exi Min Mat Fac Fac Was Fac Low Low Fac Fac Res Distress Signals 7 | . 3 2 . . . . 1 . . . . . . . 1 Communications Jammed . | . . . . . . . . . . . . . . . . Distress Signals . | . . . . . . . . . . . . . . . . Times Spotted 164 | . 5 14 8 . 6 2 54 3 6 2 . 3 20 2 39 Peak Tracking Total 8 | . 2 4 3 . 2 1 8 3 6 1 . 3 3 1 8 Tactical Retreats 7 | . 2 . . . . . 3 . . . . . . . 2 Traps | -11 -10 -9 -9 -9 -8 -8 -7 -6 -6 -6 -6 -6 -5 -4 -3 ------- Run | Yrd Mat Mat Min Exi Min Mat Fac Fac Was Fac Low Low Fac Fac Res Traps Triggered 11 | . . . . . . . 5 4 . . . . 1 . 1 Indirectly . | . . . . . . . . . . . . . . . . Trap Hack Attempts . | . . . . . . . . . . . . . . . . Triggered . | . . . . . . . . . . . . . . . . Disarmed . | . . . . . . . . . . . . . . . . Reprogrammed . | . . . . . . . . . . . . . . . . Reused . | . . . . . . . . . . . . . . . . Traps Extracted . | . . . . . . . . . . . . . . . . Installed . | . . . . . . . . . . . . . . . . Triggered . | . . . . . . . . . . . . . . . . Machines | -11 -10 -9 -9 -9 -8 -8 -7 -6 -6 -6 -6 -6 -5 -4 -3 ---------- Run | Yrd Mat Mat Min Exi Min Mat Fac Fac Was Fac Low Low Fac Fac Res Machines Disabled 25 | . . . . . . . 21 . . . . . 4 . . Max in Single Turn 7 | . . . . . . . 7 . . . . . 4 . . Machines Repaired . | . . . . . . . . . . . . . . . . Machines Dismantled . | . . . . . . . . . . . . . . . . Machines Sabotaged . | . . . . . . . . . . . . . . . . Overloaded Fab Kills . | . . . . . . . . . . . . . . . . Hacking | -11 -10 -9 -9 -9 -8 -8 -7 -6 -6 -6 -6 -6 -5 -4 -3 --------- Run | Yrd Mat Mat Min Exi Min Mat Fac Fac Was Fac Low Low Fac Fac Res Machines Accessed 28 | . 1 3 1 4 . . 7 1 . 2 . . 5 1 3 Terminals 14 | . 1 3 1 . . . 2 . . 1 . . 3 1 2 Fabricators 1 | . . . . . . . . . . 1 . . . . . Repair Stations 7 | . . . . . . . 4 1 . . . . 1 . 1 Recycling Units 2 | . . . . . . . 1 . . . . . 1 . . Scanalyzers . | . . . . . . . . . . . . . . . . Garrison Access . | . . . . . . . . . . . . . . . . Total Hacks 124 | . 2 11 5 49 . . 20 4 . 4 . . 16 3 10 Successful 89 | . 1 6 2 49 . . 11 4 . 3 . . 9 2 2 Failed 34 | . 1 5 3 . . . 9 . . 1 . . 6 1 8 Catastrophic 6 | . . 1 1 . . . 2 . . . . . 1 . 1 Database Lockouts 1 | . . . . . . . . . . . . . 1 . . Manual 11 | . 2 2 3 1 . . . . . . . . . 1 2 Terminals 47 | . 2 11 5 . . . 3 . . 2 . . 14 3 7 Fabricators 2 | . . . . . . . . . . 2 . . . . . Repair Stations 23 | . . . . . . . 15 4 . . . . 1 . 3 Recycling Units 3 | . . . . . . . 2 . . . . . 1 . . Scanalyzers . | . . . . . . . . . . . . . . . . Garrison Access . | . . . . . . . . . . . . . . . . Terminal Hacks 72 | . 1 6 2 49 . . 1 . . 2 . . 8 2 1 Record 59 | . . 2 . 49 . . . . . 2 . . 5 . 1 Prototype ID Bank 1 | . . 1 . . . . . . . . . . . . . Level Access Points 1 | . . . . . . . . . . . . . . 1 . Branch Access Points 2 | . 1 . . . . . . . . . . . 1 . . Emergency Access Points 3 | . . 1 . . . . . . . . . . 1 1 . Locate Traps 2 | . . 1 . . . . 1 . . . . . . . . Dispatch Records 1 | . . . 1 . . . . . . . . . . . . Zone Layout 3 | . . 1 1 . . . . . . . . . 1 . . Fabricator Hacks 1 | . . . . . . . . . . 1 . . . . . Build 1 | . . . . . . . . . . 1 . . . . . Repair Station Hacks 14 | . . . . . . . 9 4 . . . . . . 1 Scan Component 8 | . . . . . . . 5 2 . . . . . . 1 Repair 6 | . . . . . . . 4 2 . . . . . . . Recycling Unit Hacks 2 | . . . . . . . 1 . . . . . 1 . . Report Inventory 2 | . . . . . . . 1 . . . . . 1 . . Scanalyzer . | . . . . . . . . . . . . . . . . Garrison Access Hacks . | . . . . . . . . . . . . . . . . Unauthorized Hacks . | . . . . . . . . . . . . . . . . Terminals . | . . . . . . . . . . . . . . . . Fabricators . | . . . . . . . . . . . . . . . . Repair Stations . | . . . . . . . . . . . . . . . . Recycling Units . | . . . . . . . . . . . . . . . . Scanalyzers . | . . . . . . . . . . . . . . . . Garrison Access . | . . . . . . . . . . . . . . . . Data Cores Recovered . | . . . . . . . . . . . . . . . . Used . | . . . . . . . . . . . . . . . . Hacking Detections 19 | . 1 2 1 . . . 6 1 . 2 . . 3 1 2 Full Trace Events 2 | . . 1 1 . . . . . . . . . . . . Feedback Events . | . . . . . . . . . . . . . . . . Feedback Blocked . | . . . . . . . . . . . . . . . . Robot Schematics Acquired . | . . . . . . . . . . . . . . . . Robots Built . | . . . . . . . . . . . . . . . . Authchips . | . . . . . . . . . . . . . . . . Time . | . . . . . . . . . . . . . . . . Total Robot Build Rating . | . . . . . . . . . . . . . . . . Part Schematics Acquired . | . . . . . . . . . . . . . . . . Parts Built 2 | . . . . . . . . . . 2 . . . . . Authchips . | . . . . . . . . . . . . . . . . Time 117 | . . . . . . . . . . 117 . . . . . Total Part Build Rating 14 | . . . . . . . . . . 14 . . . . . Parts Repaired 6 | . . . . . . . 4 2 . . . . . . . Time 186 | . . . . . . . 104 82 . . . . . . . Parts Recycled . | . . . . . . . . . . . . . . . . Recycled Matter . | . . . . . . . . . . . . . . . . Retrieved Matter . | . . . . . . . . . . . . . . . . Retrieved Components . | . . . . . . . . . . . . . . . . Parts Scanalyzed . | . . . . . . . . . . . . . . . . Part Schematics Acquired . | . . . . . . . . . . . . . . . . Parts Damaged . | . . . . . . . . . . . . . . . . Bothacking | -11 -10 -9 -9 -9 -8 -8 -7 -6 -6 -6 -6 -6 -5 -4 -3 ------------ Run | Yrd Mat Mat Min Exi Min Mat Fac Fac Was Fac Low Low Fac Fac Res Used RIF Installer . | . . . . . . . . . . . . . . . . Robots Hacked . | . . . . . . . . . . . . . . . . Non-combat . | . . . . . . . . . . . . . . . . Combat . | . . . . . . . . . . . . . . . . Robot Hacks Applied . | . . . . . . . . . . . . . . . . Relay Couplers Released . | . . . . . . . . . . . . . . . . Fabnet Peak Effective % . | . . . . . . . . . . . . . . . . Robots Rewired . | . . . . . . . . . . . . . . . . Allies Hacked . | . . . . . . . . . . . . . . . . Hacks Repelled . | . . . . . . . . . . . . . . . . Allies | -11 -10 -9 -9 -9 -8 -8 -7 -6 -6 -6 -6 -6 -5 -4 -3 -------- Run | Yrd Mat Mat Min Exi Min Mat Fac Fac Was Fac Low Low Fac Fac Res Total Allies 3 | . . . 3 . . . . . . . . . . . . Largest Group 3 | . . . 3 3 3 3 2 . . . . . . . . Highest-Rated Group 40 | . . . 40 40 40 40 32 . . . . . . . . Highest-Rated Ally 16 | . . . 16 16 16 16 16 . . . . . . . . Total Orders . | . . . . . . . . . . . . . . . . Ally Attacks 35 | . . . 21 . 2 4 8 . . . . . . . . Total Damage 423 | . . . 247 . 27 32 117 . . . . . . . . Kills 6 | . . . 6 . . . . . . . . . . . . Allies Corrupted . | . . . . . . . . . . . . . . . . Allies Melted . | . . . . . . . . . . . . . . . . Intel | -11 -10 -9 -9 -9 -8 -8 -7 -6 -6 -6 -6 -6 -5 -4 -3 ------- Run | Yrd Mat Mat Min Exi Min Mat Fac Fac Was Fac Low Low Fac Fac Res Robot Analysis Total . | . . . . . . . . . . . . . . . . Derelict Logs Recovered 2 | . . . 2 . . . . . . . . . . . . Drone Launches . | . . . . . . . . . . . . . . . . Drone Recoveries . | . . . . . . . . . . . . . . . . Exploration | -11 -10 -9 -9 -9 -8 -8 -7 -6 -6 -6 -6 -6 -5 -4 -3 ------------- Run | Yrd Mat Mat Min Exi Min Mat Fac Fac Was Fac Low Low Fac Fac Res Turns Passed 12204 | 78 333 495 1091 1077 751 187 2471 424 155 1113 697 100 2084 200 948 Spaces Moved 6042 | 43 178 221 651 653 451 108 1206 180 148 467 425 43 718 94 456 Core 210 | 6 . . . . . . . . 78 17 . . . . 109 Treads 4850 | 37 178 221 651 653 451 108 1206 180 70 248 425 43 379 . . Legs 982 | . . . . . . . . . . 202 . . 339 94 347 Wheels . | . . . . . . . . . . . . . . . . Hover . | . . . . . . . . . . . . . . . . Flight . | . . . . . . . . . . . . . . . . Fastest Speed 50 | 50 160 160 160 160 160 160 160 160 50 50 163 163 163 190 50 Average Speed 164 | 144 160 160 160 160 160 160 160 161 102 171 163 163 222 190 122 Slowest Speed 260 | 160 160 160 160 160 160 160 240 240 240 250 163 163 260 190 190 Overloaded Moves . | . . . . . . . . . . . . . . . . Propulsion Burnouts . | . . . . . . . . . . . . . . . . Robots Hopped . | . . . . . . . . . . . . . . . . Cave-ins Triggered . | . . . . . . . . . . . . . . . . Exploration Rate (%) 37 | 4 34 20 99 94 82 15 31 8 91 15 66 5 13 2 15 Regions Visited 15 Branch Regions 5 Pre-discovered Areas 1 | . . . . 1 . . . . . . . . . . . Known Exits Taken 1 | . . . . . . . . . . . . . . 1 . Unknown Exits Taken 12 | 1 1 1 1 1 1 1 1 . . 1 1 1 1 . . Scrap Searched 5 | . . . 2 . 1 . . . . . 2 . . . . Spaces Dug . | . . . . . . . . . . . . . . . . Terrain Destroyed 111 | . . . . . . . 71 2 . . . 4 5 1 28 Melee . | . . . . . . . . . . . . . . . . Projectile 47 | . . . . . . . 10 2 . . . 4 2 1 28 AOE 64 | . . . . . . . 61 . . . . . 3 . . Terrain Rammed . | . . . . . . . . . . . . . . . . Walls Destroyed . | . . . . . . . . . . . . . . . . Machines Disabled . | . . . . . . . . . . . . . . . . Actions | -11 -10 -9 -9 -9 -8 -8 -7 -6 -6 -6 -6 -6 -5 -4 -3 --------- Run | Yrd Mat Mat Min Exi Min Mat Fac Fac Was Fac Low Low Fac Fac Res Total 7846 | 51 210 323 691 686 484 126 1630 297 150 763 429 59 1130 113 704 Wait 1102 | . 11 35 32 3 24 5 267 82 . 251 . 3 311 5 73 Move 6028 | 42 177 220 650 652 450 107 1205 180 147 466 424 42 717 93 456 Hop . | . . . . . . . . . . . . . . . . Pick Up 113 | . 7 14 2 . 3 5 17 7 . 12 5 . 21 4 16 Fast Attach 67 | 6 3 3 . 7 . . 9 5 1 12 . 2 7 1 11 Attach 67 | . . 2 . . . 2 7 6 1 8 . 4 13 1 23 Detach 9 | . 2 1 . 2 . . . . . 1 . . 2 . 1 Swap 71 | 1 2 7 . 1 1 2 21 6 . . . 1 7 1 21 Drop 137 | . . 17 2 8 4 5 33 5 1 6 . 1 17 5 33 Fire 226 | 2 7 22 5 . 2 . 68 6 . 7 . 6 35 3 63 Melee . | . . . . . . . . . . . . . . . . Ram . | . . . . . . . . . . . . . . . . Kick 1 | . . . . . . . . . . . . . . . 1 Crush 6 | . 1 2 . . . . 3 . . . . . . . . Escape Stasis 6 | . . . . . . . . . . . . . . . 6 Rewire 13 | . . . . 13 . . . . . . . . . . . Trap . | . . . . . . . . . . . . . . . . Miscellaneous . | . . . . . . . . . . . . . . . . Route ------- -11/Scrapyard -10/Materials (discovered 2 exits: *Mat / *Min) -9/Materials (discovered 2 exits: [*Mat] / *Min) -9/Mines (discovered 3 exits: [*Mat x2] / *Exi) -9/Exiles (discovered 2 exits: [*Min x2]) -8/Mines -8/Materials (discovered 2 exits: *Fac / Sto) -7/Factory -6/Factory -6/Waste -6/Factory -6/Lower Caves -6/Lower Caves -5/Factory (discovered 4 exits: *Fac x2 / Upp x2) -4/Factory (discovered 4 exits: *Res x4) -3/Research History --------- Turn | Location | Event 12 | -11/Scrapyard | Discovered new exit (range 15) 79 | -11/Scrapyard | Entered Materials 129 | -10/Materials | Identified exit to Mines 326 | -10/Materials | Build established: Mutant 397 | -10/Materials | Discovered new exit (range 8) 412 | -10/Materials | Entered another Materials area 412 | -9/Materials | Evolved 2 slots: Propulsion x1, Weapon x1 718 | -9/Materials | Discovered new exit (range 9) 794 | -9/Materials | Discovered new exit (range 14) 907 | -9/Materials | Entered Mines 947 | -9/Mines | Found a damaged Exp. Sensor Array with a note attached 951 | -9/Mines | Found Prototype Device 972 | -9/Mines | Build established: Scavenger-Skirmisher 1155 | -9/Mines | Found a hidden stash of uninstalled traps 1192 | -9/Mines | A weapon hastily lodged in a ceiling crevice suddenly fell to the ground 1219 | -9/Mines | Learned Materials terminal intel 1371 | -9/Mines | Deemed a non-threat by the Exiles lab entrance 1371 | -9/Mines | Discovered new exit (range 5) 1424 | -9/Mines | Discovered new exit (range 14) 1473 | -9/Mines | Assisted by bots powering up and referring to "LRC-V3" 1659 | -9/Mines | Discovered new exit (range 7) 1998 | -9/Mines | Entered Exiles 1998 | -9/Exiles | Accompanied by 3 allies 2022 | -9/Exiles | Discovered new exit (range 14) 2068 | -9/Exiles | Met 8R-AWN 2095 | -9/Exiles | Met EX-HEX 2248 | -9/Exiles | Met EX-DEC 2281 | -9/Exiles | Visited The Gauntlet 2555 | -9/Exiles | Learned location of Zion (-6) 2617 | -9/Exiles | Discovered new exit (range 12) 2723 | -9/Exiles | Met EX-BIN 2838 | -9/Exiles | Aligned with FarCom system 2840 | -9/Exiles | Given EX-Vault access code 2876 | -9/Exiles | Opened EX-Vault 2882 | -9/Exiles | Found Prototype Energy Gun 2882 | -9/Exiles | Identified AWS/Thermal 2896 | -9/Exiles | Found Prototype Processor 2896 | -9/Exiles | Identified Modified TNC 2906 | -9/Exiles | Found Prototype Device 2906 | -9/Exiles | Identified PSU Rigger 2958 | -9/Exiles | Exiles lab attacked by MAIN.C 3075 | -9/Exiles | Left Exiles lab with AWS/Thermal 3075 | -9/Exiles | Entered Mines 3075 | -8/Mines | Accompanied by 3 allies 3782 | -8/Mines | Discovered new exit (range 15) 3826 | -8/Mines | Entered Materials 3826 | -8/Materials | Accompanied by 3 allies 3826 | -8/Materials | Evolved 2 slots: Power x1, Utility x1 3827 | -8/Materials | Identified exit to Storage 3828 | -8/Materials | Loaded intel: 12 terminal locations 4000 | -8/Materials | Discovered new exit (range 3) 4013 | -8/Materials | Entered Factory 4013 | -7/Factory | Accompanied by 2 allies 4013 | -7/Factory | Evolved 2 slots: Propulsion x1, Utility x1 4491 | -7/Factory | Repaired Lgt. Treads 5510 | -7/Factory | AWS/Thermal suddenly broke down 5613 | -7/Factory | First assault squad dispatched 5621 | -7/Factory | Repaired Lgt. Treads 5879 | -7/Factory | Repaired Lgt. Treads 5907 | -7/Factory | Repaired Lgt. Treads 6468 | -7/Factory | Discovered new exit (range 6) 6472 | -7/Factory | Garrison activated, responded to threat 6484 | -7/Factory | Entered another Factory area 6484 | -6/Factory | Evolved 2 slots: Utility x1, Weapon x1 6514 | -6/Factory | Lost 4 parts (1p2n1u) 6773 | -6/Factory | Build established: Scavenger-Tank 6832 | -6/Factory | Repaired Lgt. Treads 6834 | -6/Factory | First assault squad dispatched 6889 | -6/Factory | Repaired Remote Force Field 6908 | -6/Factory | Sucked down chute 6908 | -6/Factory | Entered Waste 6923 | -6/Waste | EMP discharged 6969 | -6/Waste | Spotted C-40 Crusher 6993 | -6/Waste | Spotted C-40 Crusher 6999 | -6/Waste | Spotted C-40 Crusher 7006 | -6/Waste | Crushed by Compactor (1 part destroyed, 1 dropped) 7007 | -6/Waste | Crushed by Compactor (1 part destroyed, 1 dropped) 7010 | -6/Waste | Crushed by Compactor (1 part destroyed, 1 dropped) 7018 | -6/Waste | Crushed by Compactor (1 part destroyed, 1 dropped) 7018 | -6/Waste | Spotted C-40 Crusher 7021 | -6/Waste | Crushed by Compactor (1 part destroyed, 1 dropped) 7022 | -6/Waste | Crushed by Compactor (1 part destroyed, 1 dropped) 7022 | -6/Waste | Released all parts (2) 7023 | -6/Waste | EMP discharged 7023 | -6/Waste | System corruption reached 10% 7030 | -6/Waste | Spotted C-40 Crusher 7045 | -6/Waste | Spotted C-40 Crusher 7053 | -6/Waste | Lost 8 parts (1p3n2u2w) 7055 | -6/Waste | Discovered new exit (range 13) 7063 | -6/Waste | Entered Factory 7316 | -6/Factory | Build established: Mutant 7688 | -6/Factory | Fabricated Hvy. Gauss Cannon (x2) 7957 | -6/Factory | Discovered new exit (range 4) 8176 | -6/Factory | Entered Lower Caves 8473 | -6/Lower Caves | Build established: Scavenger-Tank 8845 | -6/Lower Caves | Discovered new exit (range 12) 8873 | -6/Lower Caves | Entered another Lower Caves area 8899 | -6/Lower Caves | Encountered a Warlord checkpoint 8951 | -6/Lower Caves | Lost 3 parts (1p2u) 8968 | -6/Lower Caves | Discovered new exit (range 5) 8973 | -6/Lower Caves | Entered Factory 8973 | -5/Factory | Evolved 2 slots: Utility x2 9417 | -5/Factory | Build established: Tank 9830 | -5/Factory | Discovered new exit (range 16) 9885 | -5/Factory | System corruption reached 10% 9924 | -5/Factory | Lost 4 parts (1p1n2u) 10025 | -5/Factory | Central database locked down 10304 | -5/Factory | Build established: Scavenger-Tank 10639 | -5/Factory | Identified exit to Upper Caves 10985 | -5/Factory | Discovered new exit (range 15) 11057 | -5/Factory | Entered another Factory area 11057 | -4/Factory | Evolved 2 slots: Power x1, Propulsion x1 11119 | -4/Factory | Identified exit to Research 11257 | -4/Factory | Entered Research 11257 | -3/Research | Evolved 2 slots: Propulsion x1, Utility x1 11904 | -3/Research | Garrison activated, responded to threat 11955 | -3/Research | Build established: Scavenger-Skirmisher 12078 | -3/Research | System corruption reached 10% 12140 | -3/Research | Released all parts (10) 12142 | -3/Research | System corruption reached 30% 12145 | -3/Research | Core integrity fell below 50% 12166 | -3/Research | Lost 22 parts (6p9n2u5w) 12178 | -3/Research | Core integrity fell below 20% 12205 | -3/Research | Destroyed by P-80 Master with Gamma Rifle Last Messages --------------- Drive. 12165_ U-05 Engineer lays Concrete. 12166_ 7V/Z38VGFEEWRO5VPURCL 12182_ System corrupted: Heat flow error (+199). 12188_ Door malfunctions. 12191_ ALERT: Hostiles spotted, dispatching reinforcements to Terminal R013. 12192_ Connecting with Terminal... 12202_ Quantum Generator explodes. 12202_ Adv. Heat Sink destroyed. 12202_ U-05 Engineer lays Concrete. 12202_ Acquired Biometal Leg. 12203_ The unstable cave ceiling collapses. 12203_ U-05 Engineer lays Concrete. 12203_ K-01 Serf collects debris. 12204_ ZGTYL0HLTVXJEMIDC,= 6I9LSGNZP 12204_ U-05 Engineer lays Concrete. 12204_ K-01 Serf collects debris. 12204_ U-05 Engineer builds a Wall. 12205_ U-05 Engineer lays Concrete. Map ----- +----------------------------------------------------+ | ?????????????????????#???????????????????????????? | | ?????????????????????# ?????????#######??????????? | | ?????????????????????# ?????????# #??????????? | | ?????????????????????# ?????????# # ?????? ??? | | ?????????????????????# ?????????# # ?????? #?? | | ?????????????????????# ?????????# # ?????? #?? | | ?????????????????????# ?????????# # #????? #?? | | ?????????????????????# ?????????# # ###### ### | | ????????????????????##+########## # | | ????????????????????# """ ## + | | ????????????????????# ""T"" ## # | | ????????????????????# "" "" ## # """ | | ????????????????????# ## ! # """ | | ????????????????????# k !#? # """ | | ????????????????????# k ####/### """ | | ???????????????????## # """ | | ??????????????????## t + | | ??????????????????# R p u# g | | ??????????????????# u/ | | ?????????????????## ################### | | ?????????????????# # #?????????????????? | | ?????????????????## #?????????????##### | | ?????????????????# p #?????????????# | | ?????????????????## p #?????????????# | | ??????????????????# ##?????????????# | | ??????????????????# # @ #??????????????# | | ??????????????????## #u# ##???############ | | ???????????????????##### #####????# # | | ???????????????????????# #????????# # | | ???????????????????????# #????????# # | | ???????????????????????# #????????# # | | ???????????????????????# #????????# # | | ???????????????????????# #????????#""" = # | | ???????????????????????# #????????#""" # | | ???????????????????????? ?????????#""" # | | ???????????????????????? ?????????# # | | ???????????????????????? ?????????# # | | ???????????????????????? ?????????#""" + | | ???????????????????????? ?????????#""" # | | ???????????????????????? ?????????#""" # | | ???????????????????????? ?????????+ # | | ??????????????????????????????????# # | | ?????????????????????????????# #######+#### | | ?????????????????????????????# | | ??????????????????????????????######### | | ??????????????????????????????????????# | | ?????????????????????????????########## "" | | ?????????????????????????????# # "" | | ?????????????????????????????# # T" | | ?????????????????????????????# # "" | +----------------------------------------------------+ Best States ------------- Heat Dissipation 122 Coolant Potential 65 Energy Generation 51 Energy Capacity 755 Matter Stores 300 Matter Capacity 300 Sight Range 22 Robot Scan Range 15 Terrain Scan Density 110 Additional Mass Support 12 Base Temperature (-) 200 Armor Coverage 225 Resistance: KI 20 Resistance: TH 25 Resistance: EX 50 Propulsion Shielding 90 Melee Speed Boost 20 Evasion (%) 55 Targeting Accuracy 8 Recoil Reduction 4 Matter Filtering 50 Defensive Hacking 12 Item Schematics ----------------- None Robot Schematics ------------------ None Fabricated ------------ Hvy. Gauss Cannon | x2 | -6/Factory | Preloaded Alien Tech Used ----------------- None Achievements -------------- None Challenges ------------ None Game ------ Seed GreatCooledCycler Manual? 0 Play Time 02:15:17 Cumulative 128.2 hours Start 2024.10.28 @ 19:12:27 End 2024.10.30 @ 12:24:25 Sessions 7 Manual Loads 0 Difficulty Rogue Special Mode None Game No. 65 Rogue 55 Adventurer 10 Explorer 0 Win Type - Total 1 Types 0/0/1/0/0/0/0/0/0 Lore% 28 Gallery% 48 Achievement% 41 Wizard Run 0 Options --------- Layout 1 ASCII 0 Keyboard 0 Movement Arrows Keybinds 0 Fullscreen 2 Font 32/SmallcapsGlow Map View 50x35 Zoom Use 0% Tactical HUD 1 Map Filters NONE Filters NONE Steam 0 RUN: a152bc1d-d22c-4b79-be1c-77b41a5b35bf